bitfinex-derivatives/quotes_SOLF0:USTF0_20250923
["timestamp","ask_amount","ask_price","bid_price","bid_amount"]
[1758659114574,3.46,213.89,213.78,7.39]
[1758659114777,3.46,213.88,213.78,7.39]
[1758659115582,4.2064,213.86,213.78,7.39]
[1758659117486,3.46,213.88,213.78,7.39]
[1758659118175,3.46,213.82,213.78,7.39]
[1758659119472,14.36982209,213.82,213.76,11.5982]
[1758659119771,3.46,213.9,213.77,7.39]
[1758659120369,4.2063,213.87,213.81,7.39]
[1758659120774,4.2063,213.87,213.81,11.5973]
[1758659120973,4.2058,213.89,213.81,11.5973]
[1758659121478,3.46,213.9,213.81,11.5973]
[1758659121683,3.46,213.9,213.81,7.39]
[1758659121883,3.46,213.89,213.81,7.39]
[1758659122179,7.6667,213.85,213.81,7.39]
[1758659122774,4.2062,213.87,213.76,2.65201865]
[1758659122979,14.09318831,213.9,213.79,2.65201865]
[1758659123179,3.46,213.91,213.79,2.65201865]
[1758659123376,3.46,213.91,213.8,7.71]
[1758659123882,4.2058,213.89,213.82,7.71]
[1758659127091,3.45,213.88,213.73,7.71]
[1758659127293,3.45,213.88,213.74,7.71]
[1758659127684,3.45,213.88,213.77,7.71]
[1758659127685,4.2071,213.83,213.77,7.71]
[1758659128085,3.45,213.85,213.77,7.71]
[1758659128586,4.2073,213.82,213.76,7.71]
[1758659129991,4.2068,213.84,213.76,7.71]
[1758659130184,3.45,213.85,213.76,7.71]
[1758659130690,3.45,213.85,213.76,9.40904353]
[1758659131484,3.45,213.85,213.75,4.2084]
[1758659131687,1.69904353,213.8,213.7,9.40904353]
[1758659131880,67.15234353,213.8,213.7,9.40904353]
[1758659132079,3.45,213.79,213.7,9.40904353]
[1758659132284,4.2086,213.75,213.71,7.71]
[1758659132486,3.45,213.74,213.64,7.71]
[1758659132790,3.45,213.74,213.67,7.71]
[1758659133091,3.45,213.75,213.67,7.71]
[1758659133288,3.45,213.79,213.7,1.69904353]
[1758659133484,4.2084,213.76,213.7,9.40904353]
[1758659133881,3.45,213.79,213.7,9.40904353]
[1758659134486,3.45,213.79,213.72,1.69904353]
[1758659134691,4.2074,213.81,213.73,7.71]
[1758659136890,4.2074,213.81,213.73,11.9188]
[1758659137894,4.2074,213.81,213.73,7.71]
[1758659138097,4.2074,213.81,213.73,9.40904353]
[1758659138589,4.2074,213.81,213.73,13.61784353]
[1758659142002,370.93075599,213.9,213.79,7.71]
[1758659142301,4.9251441,213.89,213.79,9.40904353]
[1758659142499,3.22610057,213.88,213.79,13.61664353]
[1758659142798,3.22610057,213.87,213.82,7.71]
[1758659142998,370.93075599,213.9,213.82,7.71]
[1758659143199,3.22741156,213.89,213.82,7.71]
[1758659143402,3.22741156,213.88,213.82,7.71]
[1758659143592,3.22741156,213.87,213.82,7.71]
[1758659143798,3.45,213.87,213.82,7.71]
[1758659144399,18.12645599,213.9,213.81,7.71]
[1758659144602,5.14904353,213.97,213.88,7.71]
[1758659144902,3.23057442,213.96,213.88,7.71]
[1758659145106,1.69904353,214.0,213.91,7.71]
[1758659145299,15.95733137,214.0,213.91,7.71]
[1758659145500,1.69904353,214.0,213.91,7.71]
[1758659145691,5.14904353,213.96,213.87,4.2061]
[1758659147504,9.35344353,213.96,213.87,4.2061]
[1758659147704,5.14904353,213.96,213.87,4.2061]
[1758659148403,18.05974012,214.0,213.91,1.69904353]
[1758659148598,18.05974012,214.0,213.92,7.71]
[1758659148905,5.14904353,214.01,213.92,7.71]
[1758659148906,5.14904353,214.01,213.92,11.915]
[1758659149302,5.14904353,214.01,213.92,7.71]
[1758659150804,4.2037,214.0,213.92,7.71]
[1758659151403,7.654,213.98,213.91,1.69904353]
[1758659151602,9.35304353,213.98,213.88,9.40904353]
[1758659152399,7.654,213.98,213.91,7.71]
[1758659152601,1.69904353,214.0,213.91,7.71]
[1758659152806,18.5305127,214.01,213.92,1.69904353]
[1758659153806,18.5305127,214.01,213.92,5.90424353]
[1758659154509,4.2038,214.0,213.92,5.90424353]
[1758659154711,4.2038,214.0,213.92,1.69904353]
[1758659155309,5.90284353,214.0,213.92,1.69904353]
[1758659156112,14.05371728,214.01,213.95,7.13]
[1758659156411,4.2032,214.03,213.96,1.69904353]
[1758659157214,5.14904353,214.05,213.95,11.3346]
[1758659157412,5.14904353,214.05,213.96,1.69904353]
[1758659157611,3.45,214.05,213.97,4.2042]
[1758659159010,3.45,214.05,213.98,8.82904353]
[1758659159317,17.29311002,214.05,213.98,13.03284353]
[1758659159514,3.45,214.05,213.98,13.03284353]
[1758659159714,6.60997399,214.07,213.98,13.03284353]
[1758659159915,4.2026,214.06,213.98,8.82904353]
[1758659160114,4.2026,214.06,213.98,7.13]
[1758659160316,2.40757399,214.07,213.98,8.82904353]
[1758659161212,0.70853046,214.07,213.98,8.82904353]
[1758659161718,0.70853046,214.07,214.01,1.69904353]
[1758659162017,14.49854176,214.07,214.01,8.82904353]
[1758659162818,18.70084176,214.07,214.01,8.82904353]
[1758659163019,14.49854176,214.07,214.01,8.82904353]
[1758659163319,14.49854176,214.07,213.97,8.82904353]
[1758659163515,4.2032,214.03,213.97,8.82904353]
[1758659163912,4.2035,214.01,213.97,8.82904353]
[1758659164315,4.2035,214.01,213.98,7.13]
[1758659165517,67.07194353,214.06,213.94,1.69904353]
[1758659165518,3.45,214.02,213.94,1.69904353]
[1758659165920,3.45,214.02,213.95,7.13]
[1758659166812,4.2036,214.01,213.95,7.13]
[1758659167408,4.2036,214.01,213.97,1.69904353]
[1758659167717,4.2036,214.01,213.98,7.13]
[1758659169013,3.45,214.02,213.93,7.13]
[1758659169222,3.45,214.0,213.93,7.13]
[1758659170819,123.72,214.06,213.87,454.76]
[1758659170820,13.7900113,214.07,213.94,7.13]
[1758659171021,3.45,214.06,213.99,7.13]
[1758659171822,7.6526,214.06,213.99,7.13]
[1758659172026,3.45,214.06,213.99,7.13]
[1758659172822,4.2028,214.05,213.99,7.13]
[1758659174219,3.45,214.06,213.99,7.13]
[1758659174624,3.45,214.06,214.0,1.69904353]
[1758659174815,3.45,214.06,214.0,5.90254353]
[1758659175020,18.4082072,214.07,214.01,7.26]
[1758659175525,18.4082072,214.07,214.03,7.26]
[1758659175727,21.8582072,214.07,214.03,7.26]
[1758659177115,4.2026,214.06,214.03,7.26]
[1758659177518,3.45,214.06,213.97,1.69904353]
[1758659177822,3.45,214.06,213.97,8.95904353]
[1758659178217,4.2027,214.05,213.97,13.16314353]
[1758659179227,4.2027,214.05,213.99,1.69904353]
[1758659180726,14.2059072,214.07,214.0,7.26]
[1758659181026,1.69904353,214.09,214.0,7.26]
[1758659181424,3.45,214.1,214.01,1.69904353]
[1758659181627,353.64,214.12,214.04,7.26]
[1758659181829,5.14904353,214.13,214.04,7.26]
[1758659182628,19.04580484,214.13,214.04,7.26]
[1758659182825,4.2019,214.09,214.04,7.26]
[1758659183134,4.2019,214.09,214.04,7.83]
[1758659183323,3.47,214.08,214.02,7.83]
[1758659184830,4.2024,214.07,214.01,1.69904353]
[1758659185031,4.2024,214.07,214.01,9.52904353]
[1758659185538,3.47,214.08,214.01,9.52904353]
[1758659186029,7.6722,214.08,214.01,9.52904353]
[1758659186228,4.2022,214.08,214.01,13.73234353]
[1758659187434,4.2022,214.08,214.02,4.2031]
[1758659187728,4.2022,214.08,214.04,7.83]
[1758659187929,4.2022,214.08,214.03,1.69904353]
[1758659188231,4.2022,214.08,214.04,7.83]
[1758659188436,4.2022,214.08,214.03,1.69904353]
[1758659188634,4.2022,214.08,214.04,7.83]
[1758659191629,4.2022,214.08,214.03,1.69904353]
[1758659192137,4.2022,214.08,214.04,7.83]
[1758659192730,4.2022,214.08,214.03,7.83]
[1758659193131,4.2022,214.08,214.02,4.2031]
[1758659193334,4.2022,214.08,214.03,7.83]
[1758659193735,4.2018,214.1,214.04,7.83]
[1758659194135,3.47,214.11,214.04,10.47798513]
[1758659195937,3.47,214.1,213.98,2.64798513]
[1758659196131,3.47,214.1,213.99,7.83]
[1758659196844,4.2021,214.08,213.99,7.83]
[1758659197544,7.6718,214.1,214.04,7.83]
[1758659198044,4.2014,214.12,214.04,7.83]
[1758659199542,17.36676131,214.13,214.04,7.83]
[1758659199845,4.2009,214.14,214.05,7.83]
[1758659200944,3.47,214.17,214.04,2.64798513]
[1758659200945,4.2005,214.16,214.09,12.0318]
[1758659201738,3.47,214.17,214.09,7.83]
[1758659201937,98.677184,214.18,214.09,7.83]
[1758659202640,94.477084,214.18,214.12,4.2011]
[1758659202845,7.6697,214.2,214.12,12.0311]
[1758659203145,3.47,214.2,214.12,12.0311]
[1758659203647,4.2001,214.19,214.12,7.83]
[1758659204147,3.47,214.2,214.12,7.83]
[1758659204944,65.3356,214.18,214.07,7.83]
[1758659205137,3.47,214.17,214.07,7.83]
[1758659205849,4.2011,214.13,214.07,7.83]
[1758659206644,65.3492,214.14,214.03,7.83]
[1758659206849,3.47,214.13,214.03,7.83]
[1758659207446,3.47,214.2,214.08,7.83]
[1758659207652,3.47,214.18,214.08,7.83]
[1758659207947,7.6717,214.11,214.08,7.83]
[1758659208250,7.6717,214.11,214.02,7.83]
[1758659208552,7.6717,214.11,214.03,7.83]
[1758659208849,4.2011,214.13,214.03,7.83]
[1758659209752,4.2015,214.12,214.05,7.83]
[1758659211747,65.3418,214.16,214.05,7.83]
[1758659211748,4.2017,214.11,214.05,7.83]
[1758659212052,3.47,214.1,214.01,7.83]
[1758659212551,4.2026,214.06,213.98,4.204]
[1758659212753,4.2026,214.06,213.99,7.83]
[1758659212950,3.47,214.1,213.99,7.83]
[1758659213148,3.47,214.1,214.0,2.64798513]
[1758659213450,3.47,214.1,214.01,7.06]
[1758659214952,7.6717,214.1,214.04,7.06]
[1758659216855,3.47,214.1,214.05,4.2026]
[1758659217057,4.2013,214.12,214.05,4.2026]
[1758659217853,3.44,214.17,214.07,7.06]
[1758659218152,65.3478,214.14,214.03,7.06]
[1758659218553,3.44,214.13,214.03,7.06]
[1758659219145,65.3478,214.14,214.03,7.06]
[1758659219652,65.3393,214.17,214.03,7.06]
[1758659220254,3.44,214.16,214.03,7.06]
[1758659220647,65.3393,214.17,214.03,7.06]
[1758659221054,7.6416,214.11,214.04,4.2027]
[1758659221653,122.74,214.19,214.03,7.06]
[1758659221654,65.3349,214.19,214.03,7.06]
[1758659221857,65.3349,214.19,214.03,72.4406]
[1758659222158,65.3349,214.19,214.04,7.06]
[1758659222858,65.3349,214.19,214.08,4.2019]
[1758659222859,7.6407,214.15,214.08,4.2019]
[1758659223162,3.44,214.15,214.07,7.06]
[1758659223356,3.44,214.15,214.1,4.2015]
[1758659223557,3.44,214.15,214.11,7.06]
[1758659224759,7.6403,214.17,214.12,7.06]
[1758659225259,4.2,214.19,214.12,7.06]
[1758659226869,17.440375,214.2,214.13,4.2009]
[1758659228360,17.440375,214.2,214.14,4.2008]
[1758659228556,3.44,214.26,214.15,7.06]
[1758659228768,4.1992,214.23,214.15,7.06]
[1758659228965,65.3082,214.27,214.16,4.2004]
[1758659229265,3.44,214.26,214.16,4.2004]
[1758659229867,3.44,214.2,214.08,84.76798513]
[1758659230169,3.44,214.2,214.09,7.06]
[1758659230569,3.44,214.2,214.13,4.2009]
[1758659231864,7.6398,214.2,214.13,4.2009]
[1758659233166,4.2,214.19,214.13,4.2009]
[1758659233569,4.2,214.19,214.12,7.06]
[1758659233765,68.7627,214.19,214.08,82.2]
[1758659233974,3.43,214.18,214.04,2.64798513]
[1758659234178,65.3357,214.18,214.06,4.2023]
[1758659234377,3.43,214.17,214.06,4.2023]
[1758659234677,3.43,214.17,214.05,7.14]
[1758659234678,3.43,214.14,214.05,7.14]
[1758659234875,3.43,214.14,214.03,4.2029]
[1758659235072,4.202,214.09,214.01,7.14]
[1758659235779,4.202,214.09,214.01,11.3434]
[1758659236978,4.202,214.09,214.02,4.2031]
[1758659238079,4.2022,214.08,214.02,4.2031]
[1758659238278,4.2022,214.08,214.01,7.14]
[1758659239578,7.6317,214.1,214.01,7.14]
[1758659240781,7.6317,214.1,214.03,4.2029]
[1758659242786,3.43,214.1,214.03,11.3429]
[1758659244186,7.6318,214.1,214.03,11.3429]
[1758659249388,7.6413,214.12,214.04,11.4827]
[1758659250886,7.6413,214.12,214.05,4.2025]
[1758659268095,7.6413,214.12,214.06,1.69460047]
[1758659268296,4.201,214.14,214.07,7.28]
[1758659268593,3.44,214.19,214.12,8.97460047]
[1758659269797,3.44,214.19,214.13,4.201]
[1758659271796,7.64,214.19,214.13,4.201]
[1758659273897,7.64,214.19,214.15,7.66]
[1758659274200,7.64,214.19,214.14,4.2007]
[1758659274403,7.64,214.19,214.15,7.66]
[1758659274794,7.64,214.19,214.14,4.2007]
[1758659274995,7.64,214.19,214.15,7.66]
[1758659275795,4.2002,214.18,214.15,7.66]
[1758659276102,4.2002,214.18,214.12,13.55580047]
[1758659276506,4.2004,214.17,214.13,7.66]
[1758659277394,7.6404,214.17,214.13,7.66]
[1758659279005,7.6404,214.17,214.12,5.89580047]
[1758659279506,7.6404,214.17,214.13,7.66]
[1758659280304,7.6404,214.17,214.12,5.89580047]
[1758659280500,4.2,214.19,214.13,11.8609]
[1758659280905,4.2002,214.18,214.13,11.8609]
[1758659281104,7.6402,214.18,214.13,7.66]
[1758659281408,7.6402,214.18,214.12,1.69460047]
[1758659281609,7.6402,214.18,214.13,7.66]
[1758659281810,7.6402,214.18,214.12,1.69460047]
[1758659282111,4.1997,214.21,214.14,1.69460047]
[1758659282300,4.1997,214.21,214.15,7.66]
[1758659282503,4.1997,214.21,214.08,186.8451]
[1758659282504,7.6392,214.23,214.19,1.69460047]
[1758659282698,0.68775646,214.25,214.19,1.69460047]
[1758659282903,0.68775646,214.25,214.19,9.35460047]
[1758659283304,4.199,214.24,214.19,1.69460047]
[1758659283510,3.44,214.23,214.19,9.35460047]
[1758659284308,3.44,214.23,214.2,7.66]
[1758659284514,3.44,214.24,214.17,1.69460047]
[1758659285012,4.1994,214.22,214.17,5.89480047]
[1758659285211,3.44,214.24,214.18,7.66]
[1758659285908,4.1992,214.23,214.18,7.66]
[1758659286415,8.32655646,214.25,214.18,7.66]
[1758659287415,4.199,214.24,214.18,7.66]
[1758659287803,4.199,214.24,214.07,12.32646642]
[1758659287804,4.2015,214.11,214.0,7.66]
[1758659288005,3.44,214.06,213.9,3.92206642]
[1758659288206,65.3878,214.01,213.92,1.69460047]
[1758659288411,3.44,214.0,213.89,7.66]
[1758659288909,1.69460047,214.06,213.97,1.69460047]
[1758659289212,1.69460047,214.0,213.9,1.69460047]
[1758659289511,3.44,214.02,213.94,7.66]
[1758659291309,3.44,214.02,213.94,11.8647]
[1758659292014,1.69460047,214.05,213.95,7.66]
[1758659292417,1.69460047,214.05,213.96,1.69460047]
[1758659292606,1.69460047,214.05,213.97,7.41]
[1758659293010,3.44,214.06,213.97,7.41]
[1758659294016,1.69460047,214.05,213.97,7.41]
[1758659294215,1.69460047,214.05,213.93,5.89950047]
[1758659294216,3.45,214.01,213.93,5.89950047]
[1758659294418,1.69460047,214.02,213.93,13.30950047]
[1758659295520,1.69460047,214.05,213.96,7.41]
[1758659297617,1.69460047,214.05,213.97,4.2042]
[1758659298219,1.69460047,214.05,213.96,7.41]
[1758659298517,1.69460047,214.04,213.96,7.41]
[1758659299617,1.69460047,214.04,213.85,65.4353]
[1758659299618,7.6551,213.93,213.84,7.41]
[1758659299819,1.69460047,213.93,213.84,7.41]
[1758659300016,1.69460047,213.93,213.84,9.10460047]
[1758659300414,3.45,213.98,213.86,4.2062]
[1758659300615,1.69460047,213.99,213.88,7.41]
[1758659301218,1.69460047,213.99,213.91,7.41]
[1758659304318,4.2029,214.04,213.95,7.39]
[1758659304520,5.89750047,214.04,213.95,7.39]
[1758659304824,1.69460047,214.03,213.95,7.39]
[1758659305215,4.2029,214.04,213.95,9.08460047]
[1758659307522,9.34790047,214.02,213.95,7.39]
[1758659310816,5.89740047,214.05,213.95,7.39]
[1758659311825,5.89740047,214.05,213.97,1.69460047]
[1758659312723,4.203,214.03,213.97,1.69460047]
[1758659314529,4.203,214.03,213.97,7.39]
[1758659314722,4.2026,214.05,213.97,7.39]
[1758659315924,4.2026,214.05,213.98,4.204]
[1758659321035,4.203,214.04,213.97,7.39]
[1758659321236,3.45,214.04,213.97,7.39]
[1758659323244,3.45,214.04,213.97,11.5941]
[1758659325950,7.653,214.04,213.97,11.5941]
[1758659327843,4.2031,214.03,213.97,11.5941]
[1758659336954,4.2031,214.03,213.98,7.52]
[1758659337259,4.2031,214.03,213.97,4.2041]
[1758659337757,4.2031,214.03,213.97,11.7241]
[1758659339355,65.3793,214.04,213.94,7.52]
[1758659339557,65.3872,214.01,213.9,10.16992778]
[1758659339761,3.44,214.0,213.9,10.16992778]
[1758659339956,65.3872,214.01,213.9,10.16992778]
[1758659340155,3.44,214.0,213.9,10.16992778]
[1758659340555,3.44,214.0,213.91,7.52]
[1758659341859,4.2043,213.97,213.91,7.52]
[1758659342656,4.2039,213.99,213.92,7.52]
[1758659342860,3.44,214.0,213.92,7.52]
[1758659343752,4.2043,213.97,213.92,7.52]
[1758659344260,4.2043,213.97,213.91,4.2052]
[1758659344459,4.2043,213.97,213.92,7.52]
[1758659345260,7.6443,213.97,213.91,11.7252]
[1758659345452,65.3983,213.98,213.87,7.52]
[1758659345859,3.44,213.97,213.87,7.52]
[1758659346056,4.2053,213.92,213.87,7.52]
[1758659346563,3.44,213.91,213.87,7.52]
[1758659346762,4.2053,213.92,213.87,7.52]
[1758659347155,65.4056,213.95,213.83,4.2069]
[1758659347351,3.44,213.93,213.83,7.52]
[1758659347555,65.4084,213.94,213.83,7.52]
[1758659348068,186.0028,213.96,213.83,7.52]
[1758659348069,3.44,213.92,213.83,7.52]
[1758659348456,7.6453,213.92,213.83,7.52]
[1758659349059,65.4582,213.78,213.62,38.22074524]
[1758659349261,7.28,213.73,213.62,38.22074524]
[1758659349653,65.476,213.72,213.62,38.22074524]
[1758659349854,7.28,213.71,213.57,2.64992778]
[1758659350071,21.33033877,213.71,213.57,2.64992778]
[1758659350260,7.28,213.69,213.58,120.58]
[1758659350564,7.28,213.69,213.57,2.64992778]
[1758659350565,7.28,213.69,213.57,123.22992778]
[1758659350866,7.28,213.69,213.58,65.5181]
[1758659351162,7.28,213.69,213.59,7.52]
[1758659356569,2.64992778,213.68,213.59,7.52]
[1758659363075,6.85982778,213.68,213.59,7.52]
[1758659364977,7.28,213.69,213.6,4.2114]
[1758659365174,7.28,213.69,213.61,7.19]
[1758659366785,11.4897,213.69,213.61,7.19]
[1758659367495,4.2101,213.67,213.61,7.19]
[1758659375403,11.3801,213.67,213.61,7.19]
[1758659380207,7.17,213.67,213.61,7.19]
[1758659381810,7.17,213.67,213.61,11.4011]
[1758659384911,11.3803,213.67,213.61,11.4011]
[1758659385103,7.17,213.67,213.61,7.19]
[1758659385802,7.17,213.67,213.57,1.70202262]
[1758659385803,7.17,213.65,213.57,7.19]
[1758659386404,7.17,213.65,213.47,65.5519]
[1758659386405,7.17,213.59,213.52,7.19]
[1758659386799,7.17,213.59,213.54,4.2126]
[1758659387107,7.17,213.59,213.55,7.19]
[1758659389011,1.70202262,213.62,213.56,7.19]
[1758659389609,4.2114,213.61,213.56,7.19]
[1758659389813,7.17,213.6,213.56,7.19]
[1758659390606,7.17,213.6,213.54,4.2126]
[1758659390910,7.17,213.6,213.54,11.4026]
[1758659391111,7.17,213.6,213.55,4.2123]
[1758659391412,7.17,213.6,213.56,7.19]
[1758659391613,4.2109,213.63,213.57,1.70202262]
[1758659392105,4.2109,213.63,213.56,7.19]
[1758659392912,4.2109,213.63,213.57,4.2119]
[1758659394615,7.17,213.64,213.58,11.4717]
[1758659395709,7.65,213.64,213.55,5.91432262]
[1758659396111,9.35202262,213.64,213.55,5.91432262]
[1758659396817,4.2111,213.62,213.55,5.91432262]
[1758659398117,4.2111,213.62,213.56,4.2121]
[1758659398319,7.65,213.64,213.57,1.70202262]
[1758659398711,11.8608,213.64,213.58,4.2118]
[1758659399315,11.8612,213.62,213.58,7.26]
[1758659400019,7.65,213.61,213.58,7.26]
[1758659401308,7.65,213.65,213.58,1.70202262]
[1758659401514,4.2101,213.67,213.61,7.26]
[1758659402519,7.65,213.68,213.61,7.26]
[1758659404910,4.2102,213.67,213.61,7.26]
[1758659405822,7.65,213.65,213.61,7.26]
[1758659406223,7.65,213.65,213.6,1.70202262]
[1758659406722,7.65,213.65,213.61,7.26]
[1758659407124,11.8606,213.65,213.58,1.70202262]
[1758659407319,7.65,213.69,213.52,7.26]
[1758659407626,14.05033877,213.71,213.65,8.96202262]
[1758659407824,7.65,213.71,213.62,8.96202262]
[1758659408416,7.65,213.69,213.62,8.96202262]
[1758659408613,7.65,213.69,213.6,1.70202262]
[1758659409124,7.65,213.69,213.62,1.70202262]
[1758659409325,4.2099,213.68,213.62,1.70202262]
[1758659409619,4.2099,213.68,213.61,11.4711]
[1758659409620,7.65,213.7,213.58,3.94028027]
[1758659409920,7.65,213.7,213.62,1.70202262]
[1758659410221,65.4847,213.69,213.61,1.70202262]
[1758659410426,4.2107,213.64,213.59,7.26]
[1758659411124,4.2107,213.64,213.58,1.70202262]
[1758659411125,4.2107,213.64,213.58,8.96202262]
[1758659411925,7.65,213.66,213.57,4.2119]
[1758659411926,11.8603,213.66,213.6,1.70202262]
[1758659412130,11.8603,213.66,213.6,9.16202262]
[1758659412724,4.2099,213.68,213.6,1.70202262]
[1758659412928,4.2099,213.68,213.62,1.70202262]
[1758659413124,7.74,213.67,213.61,7.46]
[1758659413730,11.9502,213.67,213.61,7.46]
[1758659414030,11.9502,213.67,213.61,9.16202262]
[1758659414530,22.03634945,213.71,213.63,1.70202262]
[1758659414729,22.03634945,213.71,213.64,7.46]
[1758659415927,7.74,213.68,213.64,7.46]
[1758659416128,14.29634945,213.71,213.64,7.46]
[1758659416330,9.44202262,213.72,213.64,7.46]
[1758659417234,7.74,213.72,213.64,7.46]
[1758659417629,7.74,213.72,213.64,9.16202262]
[1758659418230,4.2098,213.69,213.64,1.70202262]
[1758659418532,4.2098,213.69,213.65,7.46]
[1758659419339,4.2098,213.69,213.59,3.9410167]
[1758659419538,4.2098,213.69,213.64,1.70202262]
[1758659419735,4.2098,213.69,213.65,7.46]
[1758659420233,4.21,213.68,213.64,1.70202262]
[1758659420537,7.74,213.72,213.65,7.46]
[1758659421238,1.70202262,213.76,213.67,7.46]
[1758659421539,1.70202262,213.76,213.61,119.98]
[1758659421540,7.74,213.7,213.61,7.46]
[1758659422929,4.2103,213.66,213.6,9.16202262]
[1758659424333,4.2099,213.68,213.6,9.16202262]
[1758659424534,4.2099,213.68,213.61,7.43]
[1758659425533,11.9496,213.7,213.6,1.70202262]
[1758659425732,4.2096,213.7,213.64,7.43]
[1758659425939,1.70202262,213.71,213.64,7.43]
[1758659426527,1.70202262,213.73,213.64,7.43]
[1758659426935,4.2098,213.69,213.64,7.43]
[1758659428037,4.2098,213.69,213.63,5.91272262]
[1758659428234,4.2098,213.69,213.64,7.43]
[1758659428940,4.2098,213.69,213.63,5.91272262]
[1758659429135,4.2093,213.71,213.68,7.43]
[1758659429640,15.39729623,213.76,213.68,7.43]
[1758659430631,80.86099623,213.76,213.68,7.43]
[1758659430839,7.24,213.75,213.68,7.43]
[1758659431241,1.70202262,213.7,213.62,7.43]
[1758659431444,7.24,213.69,213.62,7.43]
[1758659431631,7.24,213.69,213.59,7.43]
[1758659431835,4.2106,213.65,213.59,7.43]
[1758659432038,7.24,213.69,213.59,7.43]
[1758659432546,72.7345,213.66,213.57,7.43]
[1758659432742,7.24,213.63,213.57,7.43]
[1758659432938,7.24,213.63,213.54,9.13202262]
[1758659433342,4.2117,213.59,213.54,1.70202262]
[1758659433544,4.2117,213.59,213.55,7.43]
[1758659433738,4.2117,213.59,213.54,7.43]
[1758659433936,4.2117,213.59,213.53,125.44303932]
[1758659434244,4.2117,213.59,213.54,7.43]
[1758659434441,4.2117,213.59,213.53,125.44009301]
[1758659434942,4.2117,213.59,213.54,7.43]
[1758659435248,4.2117,213.59,213.53,129.65279301]
[1758659435436,4.2117,213.59,213.54,7.43]
[1758659435634,4.2113,213.61,213.54,7.43]
[1758659436548,7.24,213.68,213.59,1.70202262]
[1758659436845,74.43052262,213.68,213.59,1.70202262]
[1758659437842,7.24,213.61,213.55,1.70202262]
[1758659438739,7.24,213.61,213.53,11.36807039]
[1758659438945,4.2118,213.58,213.53,3.93807039]
[1758659439340,7.24,213.6,213.52,3.93807039]
[1758659439542,7.24,213.6,213.52,119.76]
[1758659439944,4.2107,213.64,213.53,7.43]
[1758659440140,4.2107,213.64,213.54,7.43]
[1758659440447,4.2107,213.64,213.55,7.43]
[1758659440646,11.4503,213.66,213.57,11.36807039]
[1758659440949,11.4503,213.66,213.58,7.43]
[1758659441844,11.4503,213.66,213.59,4.2115]
[1758659442448,11.4503,213.66,213.6,4.2113]
[1758659442947,4.2099,213.68,213.62,4.2109]
[1758659443146,7.24,213.7,213.62,7.43]
[1758659443947,11.4496,213.7,213.62,11.6409]
[1758659444148,7.24,213.7,213.62,11.6409]
[1758659444349,7.24,213.7,213.62,127.15]
[1758659445053,4.2099,213.68,213.62,131.361]
[1758659445754,4.2099,213.68,213.62,11.641]
[1758659445956,4.2099,213.68,213.64,7.43]
[1758659446452,4.2099,213.68,213.63,119.7]
[1758659446757,4.2099,213.68,213.64,7.43]
[1758659446944,4.2099,213.68,213.63,119.7]
[1758659447147,4.2099,213.68,213.64,7.43]